Cogmind - Beta 11.1 @@@ ROGUE MODE // 2022.09.25 @ 22:14:10 Player: DuckBoy Result: Destroyed by as-15533 with Assembled Blade Performance ------------- Evolutions (0) 0 Regions Visited (4) 800 Robots Destroyed (31) 155 Value Destroyed (629) 629 Prototype IDs (0) 0 Alien Tech Used (0) 0 Bonus (-14) -14 TOTAL SCORE: 1570 Bonus ------- Friendly Fire -14 Cogmind --------- Core Integrity 0/250 Matter 285/300 Energy 85/100 System Corruption 0% Temperature Cool (0) Movement Core (50) Location -9/Mines Parts ------- > --- POWER (1) -------- (None) > --- PROPULSION (2) --- (None) > --- UTILITY (2) ------ Visual Processing Unit > --- WEAPON (2) ------- (None) > --- INVENTORY (5) ---- Light Treads Huge Storage Unit Large Matter Pod (150) Hacking Suite Medium Laser Peak State ------------ > --- POWER ------------ Light Angular Momentum Engine > --- PROPULSION ------- Light Treads Wheel > --- UTILITY ---------- Improved Heat Sink Huge Storage Unit > --- WEAPON ----------- Medium Laser Particle Gun > --- INVENTORY -------- Light Ion Engine Light Ion Engine Light Treads Light Treads Aluminum Leg Aluminum Leg Aluminum Leg Wheel Compact Wheel Heat Sink Small Storage Unit Visual Processing Unit Sensor Array Signal Interpreter Hacking Suite Medium Laser Small Laser Small Laser [Rating: 16] Favorites ----------- Power Light Ion Engine Engine Light Ion Engine Propulsion Light Treads Treads Light Treads Leg Aluminum Leg Wheel Wheel Utility Improved Heat Sink Device Improved Heat Sink Storage Huge Storage Unit Processor Visual Processing Unit Weapon Medium Laser Energy Gun Medium Laser Build | -11 -10 -10 -10 -9 ------- Run | Scr Mat Min Exi Min Slots Evolved . | . . . . . Power . | . . . . . Propulsion . | . . . . . Utility . | . . . . . Weapon . | . . . . . Parts Attached 24 | 5 11 3 . 5 Power 6 | 1 3 1 . 1 Engine 6 | 1 3 1 . 1 Core . | . . . . . Reactor . | . . . . . Propulsion 9 | 2 4 1 . 2 Treads 2 | 1 1 . . . Leg 1 | . 1 . . . Wheel 6 | 1 2 1 . 2 Hover . | . . . . . Flight . | . . . . . Utility 5 | . 3 . . 2 Device 1 | . 1 . . . Storage 3 | . 2 . . 1 Processor 1 | . . . . 1 Hackware . | . . . . . Protection . | . . . . . Artifact . | . . . . . Weapon 4 | 2 1 1 . . Energy Gun 4 | 2 1 1 . . Energy Cannon . | . . . . . Ballistic Gun . | . . . . . Ballistic Cannon . | . . . . . Launcher . | . . . . . Special Weapon . | . . . . . Impact Weapon . | . . . . . Slashing Weapon . | . . . . . Piercing Weapon . | . . . . . Special Melee Weapon . | . . . . . Unidentified Prototypes . | . . . . . Parts Lost 9 | . 3 1 . 5 Power 5 | . 2 1 . 2 Propulsion 4 | . 1 . . 3 Utility . | . . . . . Weapon . | . . . . . Highest Loss Streak 3 | . 1 1 . 3 To Critical Strikes 1 | . . . . 1 Average Slot Usage (%) 96 | . 91 99 100 97 Engine 12 | . 9 13 14 12 Treads 13 | . 14 14 14 13 Wheel 13 | . 12 14 14 14 Device 13 | . 12 14 14 13 Storage 13 | . 12 14 14 13 Energy Gun 27 | . 28 28 28 27 Naked Turns . | . . . . . Heaviest Build 95 | 7 91 95 95 89 Greatest Support 20 | 20 20 16 16 20 Greatest Overweight (x) 9 | . 9 9 5 8 Average Overweight (x) 5 | . 6 5 5 7 Largest Inventory Capacity 25 | 5 25 25 25 25 Average Capacity 23 | 5 21 25 25 24 Most Carried 22 | 4 17 19 22 22 Average Carried 16 | 2 11 18 19 21 Final Capacity 25 | 5 25 25 25 5 Final Carried 22 | 4 17 19 22 5 Class Distribution -------------------- 77% | Scavenger-Mutant 22% | Mutant Dominant Class ---------------- Mutant | -10/Materials Scavenger-Mutant | -10/Mines Scavenger-Mutant | -10/Exiles Scavenger-Mutant | -9/Mines Resources | -11 -10 -10 -10 -9 ----------- Run | Scr Mat Min Exi Min Matter Collected 400 | 188 162 30 . 20 Remotely . | . . . . . Salvage Created 1198 | . 796 352 . 50 Parts 60 | . 41 15 . 4 Haulers Intercepted 1 | . 1 . . . Recyclers Shooed 4 | . 3 1 . . Parts Field Recycled . | . . . . . Retrieved Matter . | . . . . . Parts Self-Destructed . | . . . . . Prevented . | . . . . . Kills | -11 -10 -10 -10 -9 ------- Run | Scr Mat Min Exi Min Combat Hostiles Destroyed 16 | . 9 4 . 3 Guns 14 | . 7 4 . 3 Classes Destroyed 8 | . 6 1 . 1 Worker 2 | . . 1 . 1 Tunneler 2 | . 1 1 . . Hauler 1 | . 1 . . . Recycler 6 | . 4 2 . . Operator 1 | . 1 . . . Watcher 3 | . 3 . . . Swarmer 3 | . . . . 3 Grunt 13 | . 9 4 . . Best Kill Streak 5 | . 5 3 . 3 Combat Bots Only 3 | . 2 3 . 3 Max Kills in Single Turn 1 | . 1 1 . 1 Gunslinging . | . . . . . Exploded . | . . . . . Melee . | . . . . . Uniques/NPCs Destroyed . | . . . . . Combat | -11 -10 -10 -10 -9 -------- Run | Scr Mat Min Exi Min Damage Taken 860 | . 364 138 . 358 Core 259 | . 78 12 . 169 Absorbed by Shields . | . . . . . Core Remaining (%) 100 | 100 . . . . Volleys Fired 86 | . 57 19 . 10 Largest 2 | . 2 2 . 2 Hottest 115 | . 115 115 . 115 Shots Fired 172 | . 114 38 . 20 Gun 172 | . 114 38 . 20 Cannon . | . . . . . Launcher . | . . . . . Special . | . . . . . Kinetic . | . . . . . Thermal 172 | . 114 38 . 20 Explosive . | . . . . . Electromagnetic . | . . . . . Robot Hit Streak 14 | . 14 7 . 4 Robot Miss Streak 4 | . 4 3 . 4 Penetration Max . | . . . . . Secondary Targets 1 | . 1 . . . Max Gunslinging Chain 1 | . 1 . . . Shots Hit Robots 118 | . 82 26 . 10 Core Hits 50 | . 33 13 . 4 Critical Kills . | . . . . . Critical Parts Destroyed . | . . . . . Critical Strikes 13 | . 10 2 . 1 Burn 13 | . 10 2 . 1 Melee Attacks . | . . . . . Impact . | . . . . . Slashing . | . . . . . Piercing . | . . . . . Sneak Attacks . | . . . . . Combat Hostiles . | . . . . . Follow-up Attacks . | . . . . . Damage Inflicted 1646 | . 1090 382 . 174 Guns 1646 | . 1090 382 . 174 Cannons . | . . . . . Explosions . | . . . . . Melee . | . . . . . Ramming . | . . . . . Kinetic . | . . . . . Thermal 1646 | . 1090 382 . 174 Explosive . | . . . . . Electromagnetic . | . . . . . Impact . | . . . . . Slashing . | . . . . . Piercing . | . . . . . Highest Corruption . | . . . . . Average Corruption . | . . . . . Corruption Purged . | . . . . . Corruption Blocked . | . . . . . Overload Shots . | . . . . . Overflow Damage . | . . . . . Projectiles . | . . . . . Explosions . | . . . . . Melee . | . . . . . Knockbacks . | . . . . . Impact . | . . . . . Kinetic . | . . . . . Secondary . | . . . . . Self-Inflicted Damage . | . . . . . Shots . | . . . . . Rammed . | . . . . . Targets Rammed . | . . . . . Kicked . | . . . . . Crushed . | . . . . . Highest Temperature 264 | . 264 97 . 54 Average Temperature 55 | . 61 45 . 39 Received Heat Transfer 282 | . 207 75 . . Effects 1 | . 1 . . . Energy Bleed 1 | . 1 . . . Siege Activations . | . . . . . Robots Corrupted . | . . . . . Combat Hostiles . | . . . . . Parts Fried . | . . . . . Impact Corruptions . | . . . . . Robots Melted 2 | . 2 . . . Combat Hostiles 2 | . 2 . . . Parts Melted 12 | . 8 3 . 1 Heat Transferred 5476 | . 3774 1147 . 555 Parts Sabotaged . | . . . . . Parts Stolen . | . . . . . Parts Stripped . | . . . . . Power Chain Reactions . | . . . . . Missiles Intercepted . | . . . . . Alert | -11 -10 -10 -10 -9 ------- Run | Scr Mat Min Exi Min Peak Influence 164 | . 164 115 . 70 Initial 4 | . . 4 . . Average 55 | . 71 53 . 40 Maximum Alert Level . | . . . . . Low Security (%) 100 | 100 100 100 . 100 Level 1 . | . . . . . Level 2 . | . . . . . Level 3 . | . . . . . Level 4 . | . . . . . Level 5 . | . . . . . High Security . | . . . . . Max Security . | . . . . . Squads Dispatched 3 | . 2 1 . . Investigation 1 | . . 1 . . Extermination . | . . . . . Reinforcement 2 | . 2 . . . Assault . | . . . . . Garrison . | . . . . . Intercept . | . . . . . Searches Triggered . | . . . . . Construction Impeded . | . . . . . Haulers Reinforced . | . . . . . Active Scanning Responses . | . . . . . Cargo Convoy Interrupts . | . . . . . Stealth | -11 -10 -10 -10 -9 --------- Run | Scr Mat Min Exi Min Distress Signals . | . . . . . Communications Jammed . | . . . . . Distress Signals . | . . . . . Times Spotted 44 | . 19 4 . 21 Peak Tracking Total 20 | . 5 3 . 20 Tactical Retreats 3 | . 3 . . . Traps | -11 -10 -10 -10 -9 ------- Run | Scr Mat Min Exi Min Traps Triggered . | . . . . . Indirectly . | . . . . . Trap Hack Attempts . | . . . . . Triggered . | . . . . . Disarmed . | . . . . . Reprogrammed . | . . . . . Reused . | . . . . . Traps Extracted . | . . . . . Installed . | . . . . . Triggered . | . . . . . Machines | -11 -10 -10 -10 -9 ---------- Run | Scr Mat Min Exi Min Machines Disabled . | . . . . . Max in Single Turn . | . . . . . Machines Sabotaged . | . . . . . Garrisons Compromised . | . . . . . Overloaded Fab Kills . | . . . . . Hacking | -11 -10 -10 -10 -9 --------- Run | Scr Mat Min Exi Min Machines Accessed 5 | . 3 1 1 . Terminals 4 | . 3 1 . . Fabricators . | . . . . . Repair Stations . | . . . . . Recycling Units . | . . . . . Scanalyzers . | . . . . . Garrison Access . | . . . . . Total Hacks 17 | . 10 3 4 . Successful 10 | . 5 1 4 . Failed 7 | . 5 2 . . Catastrophic 3 | . 2 1 . . Database Lockouts . | . . . . . Manual 8 | . 5 3 . . Terminals 13 | . 10 3 . . Fabricators . | . . . . . Repair Stations . | . . . . . Recycling Units . | . . . . . Scanalyzers . | . . . . . Garrison Access . | . . . . . Terminal Hacks 9 | . 4 1 4 . Record 4 | . . . 4 . Terminal Index 1 | . 1 . . . Unreport Threat 1 | . 1 . . . Locate Traps 1 | . 1 . . . Hauler Manifests 1 | . 1 . . . Zone Layout 1 | . . 1 . . Fabricator Hacks . | . . . . . Repair Station Hacks . | . . . . . Recycling Unit Hacks . | . . . . . Scanalyzer . | . . . . . Garrison Access Hacks . | . . . . . Unauthorized Hacks 1 | . 1 . . . Terminals 1 | . 1 . . . Botnet 1 | . 1 . . . Fabricators . | . . . . . Repair Stations . | . . . . . Recycling Units . | . . . . . Scanalyzers . | . . . . . Garrison Access . | . . . . . Data Cores Recovered . | . . . . . Used . | . . . . . Hacking Detections 4 | . 3 1 . . Full Trace Events 2 | . 1 1 . . Feedback Events . | . . . . . Feedback Blocked . | . . . . . Robot Schematics Acquired . | . . . . . Robots Built . | . . . . . Authchips . | . . . . . Time . | . . . . . Total Robot Build Rating . | . . . . . Part Schematics Acquired . | . . . . . Parts Built . | . . . . . Authchips . | . . . . . Time . | . . . . . Total Part Build Rating . | . . . . . Parts Repaired . | . . . . . Time . | . . . . . Parts Recycled . | . . . . . Recycled Matter . | . . . . . Retrieved Matter . | . . . . . Retrieved Components . | . . . . . Parts Scanalyzed . | . . . . . Part Schematics Acquired . | . . . . . Parts Damaged . | . . . . . Bothacking | -11 -10 -10 -10 -9 ------------ Run | Scr Mat Min Exi Min Used RIF Installer . | . . . . . Robots Hacked . | . . . . . Non-combat . | . . . . . Combat . | . . . . . Robot Hacks Applied . | . . . . . Relay Couplers Released . | . . . . . Fabnet Peak Effective % . | . . . . . Robots Rewired . | . . . . . Allies Hacked . | . . . . . Hacks Repelled . | . . . . . Allies | -11 -10 -10 -10 -9 -------- Run | Scr Mat Min Exi Min Total Allies 4 | . . 1 . 3 Largest Group 3 | . . 1 1 3 Highest-Rated Group 40 | . . 31 31 40 Highest-Rated Ally 31 | . . 31 31 16 Total Orders . | . . . . . Ally Attacks 6 | . . . . 6 Total Damage 26 | . . . . 26 Kills . | . . . . . Allies Corrupted . | . . . . . Allies Melted . | . . . . . Intel | -11 -10 -10 -10 -9 ------- Run | Scr Mat Min Exi Min Robot Analysis Total . | . . . . . Derelict Logs Recovered 2 | . . 1 . 1 Drone Launches . | . . . . . Drone Recoveries . | . . . . . Exploration | -11 -10 -10 -10 -9 ------------- Run | Scr Mat Min Exi Min Turns Passed 2899 | 83 1009 640 507 660 Spaces Moved 1322 | 52 369 313 289 299 Core 7 | 7 . . . . Treads 89 | 41 48 . . . Legs 27 | . 27 . . . Wheels 1199 | 4 294 313 289 299 Hover . | . . . . . Flight . | . . . . . Fastest Speed 50 | 50 120 175 175 140 Average Speed 185 | 139 197 179 175 197 Slowest Speed 480 | 160 480 215 175 200 Overloaded Moves . | . . . . . Propulsion Burnouts . | . . . . . Robots Hopped . | . . . . . Cave-ins Triggered . | . . . . . Exploration Rate (%) 46 | 3 48 55 68 60 Regions Visited 4 Branch Regions 3 Pre-discovered Areas 1 | . . . 1 . Known Exits Taken . | . . . . . Unknown Exits Taken 4 | 1 1 1 1 . Scrap Searched 1 | . . . . 1 Spaces Dug . | . . . . . Terrain Destroyed . | . . . . . Melee . | . . . . . Projectile . | . . . . . AOE . | . . . . . Terrain Rammed . | . . . . . Walls Destroyed . | . . . . . Machines Disabled . | . . . . . Actions | -11 -10 -10 -10 -9 --------- Run | Scr Mat Min Exi Min Total 1584 | 60 531 353 291 349 Wait 134 | . 87 18 . 29 Move 1318 | 51 368 312 288 299 Hop . | . . . . . Pick Up 18 | 4 8 1 3 2 Fast Attach 12 | 5 5 1 . 1 Attach 2 | . . . . 2 Detach . | . . . . . Swap 10 | . 6 2 . 2 Drop 4 | . . . . 4 Fire 86 | . 57 19 . 10 Melee . | . . . . . Ram . | . . . . . Kick . | . . . . . Crush . | . . . . . Escape Stasis . | . . . . . Rewire . | . . . . . Trap . | . . . . . Miscellaneous . | . . . . . Route ------- -11/Scrapyard -10/Materials (discovered 2 exits: [*Mat] / *Min) -10/Mines (discovered 2 exits: [*Mat] / *Exi) -10/Exiles -9/Mines (discovered 1 exit: [*Mat]) History --------- Turn | Location | Event 32 | -11/Scrapyard | Discovered new exit (range 16) 84 | -11/Scrapyard | Entered Materials 374 | -10/Materials | Discovered new exit (range 4) 559 | -10/Materials | Build established: Mutant 687 | -10/Materials | Discovered new exit (range 7) 1000 | -10/Materials | Build established: Scavenger-Mutant 1093 | -10/Materials | Entered Mines 1109 | -10/Mines | Met a Derelict bent on vengeance 1282 | -10/Mines | Learned 2 Materials zone layouts 1283 | -10/Mines | Escorted by a lone wolf Derelict 1353 | -10/Mines | Discovered new exit (range 8) 1721 | -10/Mines | Deemed a non-threat by the Exiles lab entrance 1722 | -10/Mines | Discovered new exit (range 5) 1733 | -10/Mines | Entered Exiles 1733 | -10/Exiles | Accompanied by 1 ally 1779 | -10/Exiles | Met 8R-AWN 1805 | -10/Exiles | Met EX-HEX 1907 | -10/Exiles | Met EX-DEC 1961 | -10/Exiles | Learned location of Zion (-6) 1996 | -10/Exiles | Met EX-BIN 2219 | -10/Exiles | Discovered new exit (range 14) 2240 | -10/Exiles | Entered Mines 2324 | -9/Mines | Discovered new exit (range 5) 2635 | -9/Mines | Assisted by bots powering up and referring to "LRC-V3" 2775 | -9/Mines | Learned Materials trap positions 2874 | -9/Mines | Assembled infested the area 2879 | -9/Mines | Assisted by a Guerilla fighting off Assembled 2898 | -9/Mines | Core integrity fell below 50% 2900 | -9/Mines | Destroyed by as-15533 with Assembled Blade Last Messages --------------- 02879_ A derelict emerges from the shadows: "You need to get out of here! I've been tracking a group of Assembled to figure out where they're coming from, and they're closing on this area, come on!" 02880_ HV Slug penetrates as-00870. 02884_ Mercenary 2a destroyed. 02884_ HV Slug penetrates as-00870. 02884_ as-00870 suffers critical hit (Destroy). 02884_ as-00870 destroyed. 02885_ Trooper 2b destroyed. 02886_ HV Slug penetrates Wall. 02886_ M0-TE0(h) destroyed. 02887_ Trooper 2a shuts down. 02887_ Trooper 2a destroyed. 02895_ Wheel destroyed. 02897_ Dropped Huge Storage Unit. 02897_ Dropped Med. Laser. 02898_ Dropped Particle Gun. 02898_ Dropped Sml. Storage Unit. 02900_ Lgt. Ion Engine destroyed. 02900_ Acquired Huge Storage Unit. Map ----- +----------------------------------------------------+ | ????????????????????# ??????????????????????? | | ???????????????????? ??????????????????????? | | ?????????????????#### ??????????????????????? | | ?????????????????#""" ??????????????????????? | | ????????????????## ??????????????????????? | | ????????????????? #?????????????????????? | | ????????????????? #?????????????????????? | | ?????????????????? % #?????????????????????? | | ??????????????????? % ##????????????????????? | | ???????????????????# ????????????????????? | | ???????????????????# #????????????????????? | | ????????????????#### %=##???????????????????? | | ???????????????## %*%!#???????????????????? | | ???????????????# =%! #???????????????????? | | ???????????????# $ =[ ##???????????????????? | | ???????????????# # #????????????????????? | | ???????????????## ###a #????????????????????? | | ????????????????##???# #????????????????????? | | ?????????????????????# #????????????????????? | | ?????????????????????# #????????????????????? | | ?????????????????????# ##???????????????????? | | ????????????????????##aaa#?###???????????????? | | ????????????###?????#[ ##? ??????????????? | | ???????????## ###??##!*##?? ??????????????? | | ???????????# ##?#aaa#??? ???????????### | | ???????????# ###=@[#??? ??????????## | | ???????????# """ ##!=!t#???# ???????##### | | ???????????# """ [[[!##??# #??????## | | ???????????# """ [!= ##?# #??????# | | ???????????# * ### ###????# | | ???????????## ## ##???## | | ????????????## #????## | | ?????????????# ## ##????## ### | | ?????????????# #### #?????###### | | ?????????????#####??# ######??## | | ????????????????????## ## #### | | ?????????????????????## ## | | ??????????????????????# # | | ??????????????????????## ## | | ??????????#????????##### ## #? | | ??????????# ####### #### ##? | | ?????????# % #??###### ####?? | | ?????????# = #???????### #????? | | ?????????########### ##?????????# #????? | | ???????????????????### ####??????????# #????? | | ?????????????????????####?????????????# #????? | | ??????????????????????????????????????# #????? | | ??????????????????????????????????????# #####? | | ??????????????????????????????????????# #? | | ??????????????????????????????????????##### #? | +----------------------------------------------------+ Best States ------------- Heat Dissipation 39 Energy Generation 18 Energy Capacity 250 Matter Stores 300 Matter Capacity 300 Sight Range 18 Terrain Scan Density 10 Evasion (%) 44 Recoil Reduction 1 Item Schematics ----------------- None Robot Schematics ------------------ None Fabricated ------------ Nothing Alien Tech Used ----------------- None Achievements -------------- None Challenges ------------ None Game ------ Seed LobotomyHardcellTreads Manual? 0 Play Time 00:15:11 Cumulative 142.4 hours Start 2022.09.25 @ 21:57:40 End 2022.09.25 @ 22:14:10 Sessions 1 Manual Loads 0 Difficulty Rogue Special Mode None Game No. 121 Rogue 118 Adventurer 3 Explorer 0 Win Type - Total 1 Types 1/0/0/0/0/0/0/0/0 Lore% 54 Gallery% 56 Achievement% 49 Wizard Run 0 Options --------- ASCII 0 Keyboard 0 Movement Numpad Keybinds 0 Fullscreen 1 Font 18/SmallcapsGlow Map View 76x50 Tactical HUD 1 Map Filters NONE Filters NONE Steam 1 RUN: 638084d1-11ec-47b3-89d2-bbf5b229a274